fUSD/lending_fUSD_20240414
["ID","MTS","AMOUNT","RATE_DAILY","PERIOD"]
[322616912,1713123039917,-178.253,0.00020641,2]
[322616913,1713123039926,-178.253,0.00020649,2]
[322616914,1713123039935,-397.15854259,0.0002065,2]
[322616915,1713123039944,-2148.36621101,0.0002065,3]
[322616916,1713123039954,-178.253,0.00020658,2]
[322616917,1713123039964,-178.253,0.00020666,2]
[322616919,1713123039974,-150.0,0.00020672,2]
[322616920,1713123039984,-178.253,0.00020674,2]
[322616921,1713123039996,-264.10346767,0.00020717,2]
[322616922,1713123040006,-4597.1,0.00020746,2]
[322616923,1713123040016,-251.08783605,0.00020786,2]
[322616924,1713123040025,-62060.9512,0.00020793,2]
[322616925,1713123040035,-932.7116,0.00020894,2]
[322616926,1713123040045,-500.0,0.00020894,2]
[322616927,1713123040054,-727.2416,0.00020894,2]
[322616928,1713123040064,-7838.0756,0.00020894,2]
[322616929,1713123040073,-685.38253751,0.00020894,2]
[322616930,1713123040082,-99624.7966,0.00020896,2]
[322616931,1713123040092,-176411.8624,0.00020896,2]
[322616932,1713123040101,-685.38253752,0.00020896,2]
[322616933,1713123040110,-397.15854259,0.000209,2]
[322616934,1713123040119,-264.10346767,0.000209,2]
[322616935,1713123040129,-4172.3981115,0.000209,2]
[322616936,1713123040139,-778.63534638,0.000209,2]
[322616937,1713123040148,-778.63534619,0.000209,2]
[322616938,1713123040159,-778.63534619,0.000209,2]
[322616939,1713123040169,-778.63534619,0.000209,2]
[322616940,1713123040178,-778.63534619,0.000209,2]
[322616941,1713123040187,-778.63534619,0.000209,2]
[322616942,1713123040196,-551.30758715,0.000209,2]
[322616943,1713123040205,-778.63534619,0.000209,2]
[322616944,1713123040214,-451.73201914,0.000209,2]
[322616945,1713123040224,-778.63534619,0.000209,2]
[322616946,1713123040233,-778.63534619,0.000209,2]
[322616947,1713123040246,-778.63534619,0.000209,2]
[322616948,1713123040256,-587.23254057,0.000209,2]
[322616949,1713123040265,-778.63534619,0.000209,2]
[322616950,1713123040274,-328.15837866,0.000209,2]
[322616952,1713123040284,-778.63534619,0.000209,2]
[322616954,1713123040294,-2148.36621101,0.000209,3]
[322616956,1713123040303,-153.31,0.00020919,2]
[322616958,1713123040313,-5651.01090746,0.0002098,2]
[322616960,1713123040322,-427.77076856,0.00020986,2]
[322616962,1713123040331,-3087.72444768,0.00020994,2]
[322616964,1713123040340,-3387.01845535,0.00020994,2]
[322616967,1713123040349,-245.08709582,0.00020994,2]
[322616969,1713123040358,-155.3172212,0.00020995,2]
[322616971,1713123040367,-8887.75956879,0.00020995,2]
[322616972,1713123040376,-1128.74141404,0.00020996,2]
[322616973,1713123040385,-441.38155956,0.00020996,2]
[322616974,1713123040394,-268.85140275,0.00020996,2]
[322616975,1713123040403,-199.70370161,0.00020996,2]
[322616976,1713123040412,-164.36062431,0.00020996,2]
[322616977,1713123040421,-704.91869228,0.00020996,2]
[322616978,1713123040430,-160.1828942,0.00020996,2]
[322616979,1713123040439,-3835.0274397,0.00020996,2]
[322616980,1713123040448,-310.46828507,0.00020996,2]
[322616981,1713123040457,-574.20452515,0.00020996,2]
[322616982,1713123040466,-285.46840956,0.00020996,2]
[322616983,1713123040475,-404.73102028,0.00020996,2]
[322616984,1713123040484,-196.41457958,0.00020996,2]
[322616985,1713123040496,-408.15974753,0.00020996,2]
[322616986,1713123040505,-155.08538378,0.00020996,2]
[322616987,1713123040514,-155.0,0.00020996,2]
[322616988,1713123040524,-785.52907082,0.00020996,2]
[322616989,1713123040533,-155.0,0.00020996,2]
[322616990,1713123040543,-9114.98491769,0.00020996,2]
[322616991,1713123040554,-1476.46668772,0.00020996,2]
[322616992,1713123040563,-418.13620905,0.00020996,2]
[322616993,1713123040574,-2175.08703921,0.00020996,2]
[322616994,1713123040584,-155.35415672,0.00020996,2]
[322616995,1713123040594,-206.34862353,0.00020996,2]
[322616996,1713123040604,-304.46832005,0.00020996,2]
[322616997,1713123040613,-254.11589084,0.00020996,2]
[322616998,1713123040623,-3862.26830008,0.00020996,2]
[322616999,1713123040633,-212.92520645,0.00020996,2]
[322617000,1713123040642,-210.85118914,0.00020996,2]
[322617001,1713123040652,-236.2586598,0.00020996,2]
[322617002,1713123040661,-1969.91143067,0.00020996,2]
[322617003,1713123040670,-155.42492609,0.00020996,2]
[322617004,1713123040680,-2929.59794809,0.00020996,2]
[322617005,1713123040689,-155.35542307,0.00020996,2]
[322617006,1713123040698,-620.76154745,0.00020997,2]
[322617007,1713123040707,-732.83358876,0.00020997,2]
[322617008,1713123040716,-6094.57537436,0.00020997,2]
[322617009,1713123040728,-4641622.30664064,0.00021,2]
[322617010,1713123040752,-10523769.00609781,0.00021,2]
[322617011,1713123040762,-715.48314253,0.00021,2]
[322617012,1713123040771,-1430.30975011,0.00021,2]
[322617013,1713123040781,-485.17,0.00021,2]
[322617014,1713123040790,-4944292.2756253,0.00021,2]
[322617015,1713123040799,-543.84,0.00021,2]
[322617016,1713123040809,-1250.0,0.00021,3]
[322617017,1713123040818,-2000.0,0.00021,2]
[322617018,1713123040828,-200.0,0.00021,2]
[322617019,1713123040837,-2000.0,0.00021,2]
[322617020,1713123040846,-200.0,0.00021,2]
[322617021,1713123040855,-167.0,0.0002112,2]
[322617022,1713123040865,-2000.0,0.0002121,2]
[322617023,1713123040874,-200.0,0.0002121,2]
[322617024,1713123040884,-2000.0,0.0002121,2]
[322617025,1713123040893,-200.0,0.0002121,2]
[322617026,1713123040902,-3116.58924599,0.00021312,2]
[322617027,1713123040912,-489.63416,0.0002137,2]
[322617028,1713123040921,-200.0,0.00021422,2]
[322617029,1713123040930,-169.56,0.00021554,2]
[322617030,1713123040940,-2187.0,0.000217,2]
[322617031,1713123040949,-1098.0,0.000217,2]
[322617032,1713123040959,-246.72508,0.0002173,2]
[322617033,1713123040968,-167.0,0.00021754,2]
[322617034,1713123040978,-246.72507,0.0002176,2]
[322617035,1713123040988,-246.72507,0.0002177,2]
[322617036,1713123040997,-246.72508,0.0002181,2]
[322617037,1713123041008,-246.72508,0.0002185,2]
[322617038,1713123041017,-246.72507,0.0002188,2]
[322617039,1713123041028,-250.0,0.00021918,2]
[322617040,1713123041038,-250.0,0.00021918,2]
[322617041,1713123041048,-1000.0,0.00021998,2]
[322617042,1713123041058,-999.999999,0.00022,2]
[322617043,1713123041068,-784.24043551,0.00022,2]
[322617044,1713123041078,-1000.0,0.00022,2]
[322617045,1713123041088,-690.32807421,0.00022,2]
[322617046,1713123041097,-690.32807421,0.00022,2]
[322617047,1713123041107,-690.32807421,0.00022,2]
[322617048,1713123041117,-690.32807421,0.00022,2]
[322617049,1713123041127,-690.32807421,0.00022,2]
[322617050,1713123041137,-690.32807421,0.00022,2]
[322617051,1713123041146,-690.32807421,0.00022,2]
[322617052,1713123041156,-690.32807421,0.00022,2]
[322617053,1713123041166,-690.32807421,0.00022,2]
[322617054,1713123041177,-690.32807421,0.00022,2]
[322617055,1713123041187,-690.32807421,0.00022,2]
[322617056,1713123041196,-690.32807421,0.00022,2]
[322617057,1713123041205,-690.32807421,0.00022,2]
[322617058,1713123041214,-690.32807421,0.00022,2]
[322617059,1713123041225,-690.32807421,0.00022,2]
[322617060,1713123041235,-690.32807421,0.00022,2]
[322617061,1713123041247,-690.32807421,0.00022,2]
[322617062,1713123041256,-690.32807421,0.00022,2]
[322617063,1713123041266,-690.32807421,0.00022,2]
[322617064,1713123041275,-690.32807421,0.00022,2]
[322617065,1713123041285,-690.32807421,0.00022,2]
[322617066,1713123041294,-690.32807421,0.00022,2]
[322617067,1713123041303,-690.32807421,0.00022,2]
[322617068,1713123041313,-690.32807421,0.00022,2]
[322617069,1713123041326,-690.32807421,0.00022,2]
[322617070,1713123041335,-690.32807421,0.00022,2]
[322617071,1713123041345,-690.32807421,0.00022,2]
[322617072,1713123041355,-690.32807421,0.00022,2]
[322617073,1713123041365,-690.32807421,0.00022,2]
[322617074,1713123041374,-690.32807421,0.00022,2]
[322617075,1713123041383,-690.32807421,0.00022,2]
[322617076,1713123041392,-690.32807421,0.00022,2]
[322617077,1713123041402,-690.32807421,0.00022,2]
[322617078,1713123041411,-690.32807421,0.00022,2]
[322617079,1713123041420,-690.32807421,0.00022,2]
[322617080,1713123041429,-690.32807421,0.00022,2]
[322617081,1713123041438,-690.32807421,0.00022,2]
[322617082,1713123041447,-690.32807421,0.00022,2]
[322617083,1713123041456,-690.32807421,0.00022,2]
[322617084,1713123041466,-690.32807421,0.00022,2]
[322617085,1713123041476,-690.32807421,0.00022,2]
[322617086,1713123041485,-690.32807421,0.00022,2]
[322617087,1713123041496,-690.32807421,0.00022,2]
[322617088,1713123041505,-690.32807421,0.00022,2]
[322617089,1713123041515,-690.32807421,0.00022,2]
[322617090,1713123041524,-690.32807421,0.00022,2]
[322617091,1713123041534,-690.32807421,0.00022,2]
[322617092,1713123041543,-690.32807421,0.00022,2]
[322617093,1713123041553,-690.32807421,0.00022,2]
[322617094,1713123041561,-690.32807421,0.00022,2]
[322617095,1713123041571,-690.32807421,0.00022,2]
[322617096,1713123041579,-690.32807421,0.00022,2]
[322617097,1713123041588,-690.32807421,0.00022,2]
[322617098,1713123041598,-690.32807421,0.00022,2]
[322617099,1713123041607,-690.32807421,0.00022,2]
[322617100,1713123041616,-690.32807421,0.00022,2]
[322617101,1713123041626,-690.32807421,0.00022,2]
[322617102,1713123041635,-690.32807421,0.00022,2]
[322617103,1713123041644,-690.32807421,0.00022,2]
[322617104,1713123041653,-690.32807421,0.00022,2]
[322617105,1713123041663,-690.32807421,0.00022,2]
[322617106,1713123041672,-690.32807421,0.00022,2]
[322617107,1713123041681,-690.32807421,0.00022,2]
[322617108,1713123041690,-690.32807421,0.00022,2]
[322617109,1713123041699,-690.32807421,0.00022,2]
[322617110,1713123041710,-153.31,0.0002202,2]
[322617111,1713123041719,-489.63416,0.00022192,2]
[322617112,1713123041729,-6186.97731092,0.000223,2]
[322617113,1713123041739,-167.0,0.00022388,2]
[322617114,1713123041748,-293.0,0.00022435,2]
[322617115,1713123041757,-1147.43,0.00022532,2]
[322617116,1713123041766,-1300.0,0.00023,3]
[322617117,1713123041775,-489.63416,0.00023014,2]
[322617118,1713123041784,-153.31,0.00023121,2]
[322617119,1713123041793,-160.0,0.00023194,2]
[322617120,1713123041803,-703.0,0.00023288,2]
[322617121,1713123041812,-10000.0,0.00023316,2]
[322617122,1713123041821,-5719.0,0.000234,2]
[322617123,1713123041830,-4803.0,0.000234,2]
[322617124,1713123041839,-1261.0,0.000234,2]
[322617125,1713123041849,-545.379,0.000234,2]
[322617126,1713123041858,-4597.1,0.00023486,2]
[322617127,1713123041867,-489.63416,0.00023836,2]
[322617128,1713123041876,-781.0,0.000239,2]
[322617129,1713123041885,-192.7,0.00024202,2]
[322617130,1713123041895,-153.31,0.00024222,2]
[322617131,1713123041905,-1000.0,0.00024443,2]
[322617132,1713123041914,-807.6001839,0.000245,2]
[322617133,1713123041923,-971.49,0.00024648,2]
[322617134,1713123041933,-489.63416,0.00024658,2]
[322617135,1713123041943,-500.0,0.00024658,2]
[322617136,1713123041952,-411.0,0.00024678,2]
[322617137,1713123041962,-150.0,0.00024688,2]
[322617138,1713123041971,-263.743,0.00024688,2]
[322617139,1713123041980,-500.0,0.000247,3]
[322617140,1713123041991,-622.608,0.000247,2]
[322617141,1713123042000,-1948.0,0.000247,2]
[322617142,1713123042010,-807.0,0.000247,2]
[322617143,1713123042019,-436.0,0.000247,2]
[322617144,1713123042028,-283.67,0.000247,2]
[322617145,1713123042037,-432.715,0.000247,2]
[322617146,1713123042046,-1145.879,0.000247,2]
[322617147,1713123042056,-3043.0,0.000247,2]
[322617148,1713123042065,-1472.0,0.000247,2]
[322617149,1713123042074,-154.168,0.000247,2]
[322617150,1713123042083,-289.272,0.000247,2]
[322617151,1713123042092,-1667.217,0.000247,2]
[322617152,1713123042102,-2440.0,0.000247,2]
[322617153,1713123042110,-355.0,0.000247,2]
[322617154,1713123042119,-443.0,0.000247,2]
[322617155,1713123042128,-215.0,0.000247,2]
[322617156,1713123042137,-968.0,0.000247,2]
[322617157,1713123042147,-1426.138,0.000247,2]
[322617158,1713123042156,-1315.0,0.000247,2]
[322617159,1713123042165,-461.0,0.000247,2]
[322617160,1713123042173,-2291.0,0.000247,2]
[322617161,1713123042182,-37623.0,0.000247,2]
[322617162,1713123042191,-1147.43,0.00024796,2]
[322617163,1713123042201,-1998.95566924,0.000248,2]
[322617164,1713123042210,-178.8191759,0.00025,2]
[322617165,1713123042219,-118956.28755477,0.00025,2]
[322617166,1713123042228,-1362.81977952,0.00025,2]
[322617167,1713123042239,-155.65264416,0.00025,2]
[322617168,1713123042253,-563.08685838,0.00025,2]
[322617169,1713123042263,-155.0,0.00025,2]
[322617170,1713123042271,-2605.45039561,0.00025,2]
[322617171,1713123042281,-1350.0,0.00025,3]
[322617172,1713123042290,-1000.0,0.00025,4]
[322617173,1713123042299,-543.84,0.000251,2]
[322617174,1713123042308,-200.0,0.00025266,2]
[322617175,1713123042321,-153.31,0.00025323,2]
[322617176,1713123042331,-489.63416,0.00025479,2]
[322617177,1713123042341,-150.0,0.000255,2]
[322617178,1713123042351,-485.17,0.00026,2]
[322617179,1713123042360,-150.0,0.00026,2]
[322617180,1713123042369,-489.63416,0.00026301,2]
[322617181,1713123042378,-5719.0,0.000264,2]
[322617182,1713123042388,-4803.0,0.000264,2]
[322617183,1713123042396,-1261.0,0.000264,2]
[322617184,1713123042406,-541.0,0.000264,2]
[322617185,1713123042415,-153.31,0.00026424,2]
[322617186,1713123042425,-865.21030383,0.00026434,7]
[322617187,1713123042434,-2000.0,0.00026434,2]
[322617188,1713123042443,-155.0,0.00026434,2]
[322617189,1713123042453,-155.0,0.00026434,2]
[322617190,1713123042463,-627.47391245,0.00026434,2]
[322617191,1713123042472,-2210.58782681,0.00026434,2]
[322617192,1713123042481,-2231.89670174,0.00026455,28]
[322617193,1713123042492,-34179.71553555,0.000265,2]
[322617194,1713123042500,-150.0,0.000265,2]
[322617195,1713123042510,-1923.74296468,0.00026698,2]
[322617196,1713123042519,-200.0,0.00026744,2]
[322617197,1713123042528,-500.0,0.00026744,2]
[322617198,1713123042537,-200.0,0.00026744,2]
[322617199,1713123042548,-685.39764,0.000268,2]
[322617200,1713123042558,-287.42,0.0002688,2]
[322617201,1713123042568,-380.0,0.00026884,2]
[322617202,1713123042578,-1000.0,0.00026887,2]
[322617203,1713123042588,-380.0,0.00026899,2]
[322617204,1713123042599,-380.0,0.00026905,2]
[322617205,1713123042610,-380.0,0.00026916,2]
[322617206,1713123042621,-380.0,0.00026918,2]
[322617207,1713123042633,-380.0,0.00026929,2]
[322617208,1713123042645,-188.56727963,0.00027,4]
[322617209,1713123042658,-3570.94478052,0.00027,2]
[322617210,1713123042670,-1400.0,0.00027,3]
[322617211,1713123042681,-150.0,0.00027,2]
[322617213,1713123042693,-1147.43,0.0002706,2]
[322617215,1713123042705,-406.0,0.00027146,2]
[322617217,1713123042717,-354.803881,0.000272,2]
[322617218,1713123042729,-532.205822,0.000272,2]
[322617230,1713123042947,-709.607763,0.000272,2]
[322617231,1713123042960,-887.009704,0.000272,2]
[322617232,1713123042971,-1241.813586,0.000272,2]
[322617233,1713123042982,-314.27,0.00027397,2]
[322617234,1713123043000,-164.41,0.00027397,2]
[322617235,1713123043012,-175.47,0.00027397,2]
[322617236,1713123043023,-261.71,0.00027397,2]
[322617237,1713123043034,-2000.0,0.00027397,2]
[322617238,1713123043046,-486.10529255,0.000274,2]
[322617239,1713123043058,-150.0,0.000275,2]
[322617240,1713123043070,-150.0,0.00027609,2]
[322617241,1713123043081,-150.0,0.00027625,2]
[322617242,1713123043091,-150.0,0.00027688,2]
[322617243,1713123043102,-150.0,0.00027688,2]
[322617244,1713123043112,-1106.665,0.000277,2]
[322617245,1713123043122,-188.569,0.000277,2]
[322617246,1713123043132,-436.0,0.000277,2]
[322617247,1713123043143,-280.0,0.000277,2]
[322617248,1713123043153,-399.0,0.000277,2]
[322617249,1713123043164,-1140.0,0.000277,2]
[322617250,1713123043175,-2979.0,0.000277,2]
[322617251,1713123043187,-1470.258,0.000277,2]
[322617252,1713123043198,-150.0,0.000277,2]
[322617253,1713123043208,-150.0,0.000277,2]
[322617254,1713123043219,-1637.0,0.000277,2]
[322617255,1713123043229,-2440.0,0.000277,2]
[322617256,1713123043248,-355.0,0.000277,2]
[322617257,1713123043259,-443.0,0.000277,2]
[322617258,1713123043269,-214.0,0.000277,2]
[322617259,1713123043280,-968.0,0.000277,2]
[322617260,1713123043291,-1391.0,0.000277,2]
[322617261,1713123043300,-1315.0,0.000277,2]
[322617262,1713123043312,-461.0,0.000277,2]
[322617263,1713123043321,-2291.0,0.000277,2]
[322617264,1713123043331,-37623.0,0.000277,2]
[322617265,1713123043341,-150.0,0.00027743,2]
[322617266,1713123043351,-150.0,0.00027752,2]
[322617267,1713123043361,-150.0,0.00027767,2]
[322617268,1713123043370,-150.0,0.00027783,2]
[322617269,1713123043380,-900.0,0.00027833,2]
[322617270,1713123043390,-155.0,0.00027833,2]
[322617271,1713123043400,-1469.44551337,0.00027833,2]
[322617272,1713123043410,-15658.91148389,0.00027833,2]
[322617273,1713123043420,-20189.0893382,0.00028,2]
[322617274,1713123043429,-543.84,0.00028,2]
[322617275,1713123043439,-150.0,0.00028,2]
[322617276,1713123043448,-1647.0,0.00028,2]
[322617277,1713123043458,-200.0,0.00028,2]
[322617278,1713123043468,-150.0,0.00028105,2]
[322617279,1713123043717,-150.0,0.00028113,2]
[322617280,1713123043726,-150.0,0.00028149,2]
[322617281,1713123043735,-150.0,0.00028167,2]
[322617282,1713123043749,-150.0,0.00028195,2]
[322617283,1713123043758,-150.0,0.00028205,2]
[322617284,1713123043767,-810232.08544878,0.00028208,2]
[322617285,1713123044334,-755.25252942,0.00028208,2]
[322617286,1713123044349,-4722.76454072,0.00028208,2]
[322617287,1713123044463,-690.32807421,0.00022,2]
[322617288,1713123044685,-32056.66645272,0.00028208,2]
[322617289,1713123044701,-8355.461751,0.00028208,2]
[322617290,1713123044714,-24527.2305939,0.00028208,2]
[322617291,1713123044777,-303.48,0.00022,2]
[322617292,1713123045303,-506.13876888,0.00019778,2]
[322617293,1713123045312,-778.63534619,0.000209,2]
[322617294,1713123045324,-386.84807421,0.00022,2]
[322617295,1713123045333,-690.32807421,0.00022,2]
[322617296,1713123045342,-503.24528266,0.00022,2]
[322617297,1713123045354,-187.08279155,0.00022,2]
[322617298,1713123045363,-690.32807421,0.00022,2]
[322617299,1713123045373,-489.63416,0.00027123,2]
[322617300,1713123045384,-312566.50798638,0.00028208,2]
[322617301,1713123045606,-642.35214,0.00022,2]
[322617302,1713123045619,-47.97593421,0.00022,2]
[322617303,1713123045629,-1327.546,0.000234,2]
[322617304,1713123045639,-1293.41760078,0.00028208,2]
[322617308,1713123045766,-690.32807421,0.00022,2]
[322617309,1713123045776,-5918.37752399,0.00028208,2]
[322617310,1713123045788,-2773.44126574,0.00028208,2]
[322617311,1713123045799,-698.24193863,0.00028208,2]
[322617313,1713123045810,-848.067256,0.00028208,2]
[322617318,1713123047654,-654.02,0.00020227,2]
[322617319,1713123048596,-267.24022475,0.00020227,2]
[322617320,1713123048610,-151.24275275,0.00020227,2]
[322617321,1713123048621,-690.32807421,0.00022,2]
[322617322,1713123048631,-411.68883931,0.00022,2]
[322617323,1713123048645,-278.6392349,0.00022,2]
[322617324,1713123048655,-163.54590139,0.00022,2]
[322617325,1713123048676,-522.6104284,0.00022,2]
[322617326,1713123048701,-4.17174442,0.00022,2]
[322617327,1713123048712,-690.32807421,0.00022,2]
[322617328,1713123048722,-690.32807421,0.00022,2]
[322617329,1713123048733,-690.32807421,0.00022,2]
[322617330,1713123048746,-677.55723338,0.00022,2]
[322617331,1713123048969,-12.77084083,0.00022,2]
[322617332,1713123048982,-690.32807421,0.00022,2]
[322617333,1713123048999,-78.8682599,0.00022,2]
[322617334,1713123049017,-611.45981431,0.00022,2]
[322617335,1713123049029,-690.32807421,0.00022,2]
[322617336,1713123049043,-690.32807421,0.00022,2]
[322617337,1713123049055,-690.32807421,0.00022,2]
[322617338,1713123049068,-690.32807421,0.00022,2]
[322617339,1713123049081,-690.32807421,0.00022,2]
[322617340,1713123049093,-690.32807421,0.00022,2]
[322617341,1713123049106,-690.32807421,0.00022,2]
[322617342,1713123049116,-690.32807421,0.00022,2]
[322617343,1713123049130,-690.32807421,0.00022,2]
[322617344,1713123049142,-690.32807421,0.00022,2]
[322617345,1713123049155,-1145.923,0.000234,2]
[322617346,1713123049168,-1054.0,0.000264,2]
[322617347,1713123049182,-17947.9876663,0.00028208,2]
[322617348,1713123051351,-738.57999998,0.00018978,2]
[322617349,1713123051365,-1088.5,0.00018978,2]
[322617350,1713123051425,-2073.66743508,0.00018978,2]
[322617351,1713123051436,-506.13876888,0.00020003,2]
[322617352,1713123051448,-778.63534619,0.000209,2]
[322617353,1713123051459,-690.32807421,0.00022,2]
[322617354,1713123051471,-690.32807421,0.00022,2]
[322617355,1713123051482,-690.32807421,0.00022,2]
[322617356,1713123051495,-690.32807421,0.00022,2]
[322617357,1713123051506,-690.32807421,0.00022,2]
[322617358,1713123051518,-690.32807421,0.00022,2]
[322617359,1713123051529,-690.32807421,0.00022,2]
[322617360,1713123051541,-690.32807421,0.00022,2]
[322617361,1713123051552,-690.32807421,0.00022,2]
[322617362,1713123051562,-777.0,0.00023865,2]
[322617363,1713123051574,-250.0,0.00026574,2]
[322617364,1713123051584,-89605.47778198,0.00028208,2]
[322617365,1713123051620,-334.6482219,0.00028208,2]
[322617366,1713123051654,-878.618137,0.00028208,2]
[322617367,1713123051667,-150534.07925066,0.00028208,2]
[322617368,1713123051680,-171245.1959094,0.00028208,2]
[322617369,1713123051728,-2462.68515412,0.00028208,2]
[322617370,1713123051742,-6254.70780033,0.00028208,2]
[322617374,1713123608728,-210.32926479,0.00019391,2]
[322617375,1713123608753,-4722.8830301,0.00019391,2]
[322617376,1713123608777,-155.0,0.00019393,2]
[322617377,1713123608802,-3078.21068361,0.00019393,2]
[322617378,1713123608827,-4326.39237795,0.00019393,2]
[322617379,1713123608853,-298.92910282,0.00019393,2]
[322617380,1713123608877,-698.937761,0.00019394,2]
[322617381,1713123608901,-267.09258882,0.00019491,2]
[322617382,1713123608925,-486.67993032,0.00019491,2]
[322617383,1713123608954,-150.0,0.00019492,2]
[322617384,1713123608980,-295.98869021,0.000195,2]
[322617385,1713123609007,-155.0,0.0002,2]
[322617386,1713123609033,-158.29825463,0.00020184,2]
[322617387,1713123609059,-832.37,0.00020195,2]
[322617388,1713123609085,-1000.0,0.00020284,2]
[322617389,1713123609110,-8343.1432,0.000208,2]
[322617390,1713123609135,-2926.74,0.000209,2]
[322617391,1713123609161,-9999.99,0.000209,2]
[322617392,1713123609195,-499.99,0.000209,2]
[322617393,1713123609220,-715.48314253,0.00021,2]
[322617394,1713123609245,-1250.0,0.00021,3]
[322617395,1713123609270,-150.99,0.00021,2]
[322617396,1713123609295,-150.99,0.00021,2]
[322617397,1713123610124,1000.0,0.00019392,2]
[322617398,1713123610399,156.72,0.00017576,2]
[322617402,1713123670315,343.77520184,0.00017576,2]
[322617403,1713123671463,179.44574028,0.00017576,2]
[322617404,1713123673848,155.0,0.00017576,2]
[322617405,1713123674286,435.69470741,0.00017576,2]
[322617406,1713123675493,288.09495201,0.00017576,2]
[322617407,1713123676367,319.4127886,0.00017576,2]
[322617408,1713123676838,360.83177805,0.00017576,2]
[322617409,1713123677275,365.3656884,0.00017576,2]
[322617410,1713123677571,323.54057448,0.00017576,2]
[322617412,1713123681214,323.35440399,0.00017576,2]
[322617413,1713123683361,155.0,0.00017576,2]
[322617414,1713123685235,179.44574028,0.00017576,2]
[322617415,1713123686881,343.77520184,0.00017576,2]
[322617416,1713123687767,155.0,0.00017576,2]
[322617417,1713123688522,435.69470741,0.00017576,2]
[322617418,1713123691887,319.4127886,0.00017576,2]
[322617419,1713123693274,365.3656884,0.00017576,2]
[322617420,1713123693612,239.88585701,0.00017576,2]
[322617421,1713123697130,360.83177805,0.00017576,2]
[322617422,1713123697997,155.25459208,0.00017576,2]
[322617423,1713123700791,446.29799446,0.00017576,2]
[322617424,1713123700895,288.09495201,0.00017576,2]
[322617425,1713123703141,343.77520184,0.00017576,2]
[322617426,1713123705717,155.0,0.00017576,2]
[322617427,1713123708562,319.4127886,0.00017576,2]
[322617428,1713123710783,435.69470741,0.00017576,2]
[322617429,1713123713298,179.99285702,0.00017576,2]
[322617430,1713123714480,360.83177805,0.00017576,2]
[322617431,1713123716954,288.09495201,0.00017576,2]
[322617432,1713123718336,343.52963846,0.00017576,2]
[322617434,1713123725790,319.4127886,0.00017576,2]
[322617436,1713123727842,155.0,0.00017576,2]
[322617437,1713123730276,307.12325806,0.00017576,2]
[322617438,1713123734955,288.09495201,0.00017576,2]
[322617439,1713123743752,252.17275942,0.00017576,2]
[322617440,1713123745812,235.67716779,0.00017576,2]
[322617441,1713123761112,288.09495201,0.00017576,2]
[322617444,1713123800928,-715.48314253,0.0002144,2]
[322617445,1713123800957,-889.4328,0.000216,2]
[322617446,1713123800984,-366.28,0.00021875,2]
[322617447,1713123801010,-250.0,0.00021927,2]
[322617448,1713123801036,-156.19509503,0.00021977,2]
[322617449,1713123801062,-424.06271263,0.00021977,2]
[322617450,1713123801088,-500.0,0.00022195,2]
[322617451,1713123801113,-153.31,0.00022212,2]
[322617452,1713123801138,-5420.67220574,0.000223,2]
[322617453,1713123801163,-267.72704526,0.00022408,2]
[322617454,1713123801189,-150.0,0.00022458,2]
[322617455,1713123801216,-150.0,0.00022458,2]
[322617456,1713123801241,-832.37,0.00022459,2]